fUST/lending_fUST_20250517
["ID","MTS","AMOUNT","RATE_DAILY","PERIOD"]
[361272785,1747411213969,5000.0,0.00012,2]
[361272786,1747411230477,5000.0,0.00012,2]
[361272787,1747411246285,5000.0,0.00012,2]
[361272788,1747411262161,5000.0,0.00012,2]
[361272789,1747411278987,5000.0,0.00012,2]
[361272790,1747411291832,200.0,0.00026625,120]
[361272791,1747411294485,5000.0,0.00012,2]
[361272792,1747411310221,5000.0,0.00012,2]
[361272793,1747411325472,5000.0,0.00012,2]
[361272794,1747411326529,568.04056368,0.00011932,2]
[361272795,1747411341163,5000.0,0.00012,2]
[361272796,1747411356907,5000.0,0.00012,2]
[361272797,1747411372697,5000.0,0.00012,2]
[361272798,1747411388894,5000.0,0.00012,2]
[361272799,1747411404249,5000.0,0.00012,2]
[361272800,1747411420061,5000.0,0.00012,2]
[361272801,1747411436025,5000.0,0.00012,2]
[361272802,1747411451326,5000.0,0.00012,2]
[361272803,1747411466495,4352.48943632,0.00012,2]
[361272804,1747411471902,200.0,0.00026591,120]
[361272806,1747411556537,246.37571083,0.00026591,120]
[361272807,1747411577482,500.0,0.00027,120]
[361272812,1747411711588,200.0,0.00026259,120]
[361272864,1747411832847,-5000.0,0.00011396,14]
[361272865,1747411832858,-181.531825,0.00011511,2]
[361272866,1747411832868,-250.0,0.00012129,2]
[361272868,1747411832878,-300.0,0.00012217,2]
[361272870,1747411832888,-106.48630015,0.00012218,2]
[361272873,1747411832905,-193.51369985,0.00012218,2]
[361272874,1747411832915,-69.56547202,0.00012218,2]
[361272876,1747411832932,-230.43452798,0.00012218,2]
[361272878,1747411832942,-1200.0,0.00012218,2]
[361272880,1747411832952,-300.0,0.00012218,2]
[361272882,1747411832962,-18176.49524637,0.0001222,2]
[361272983,1747411841038,-5000.0,0.00012098,14]
[361272985,1747411841048,-6723.50475363,0.0001222,2]
[361272987,1747411841057,-205.7311105,0.00012287,2]
[361272990,1747411841067,-211.46472849,0.00012466,2]
[361272992,1747411841076,-500.0,0.00012466,2]
[361272994,1747411841086,-500.0,0.00012466,2]
[361272996,1747411841095,-500.0,0.00012466,2]
[361272998,1747411841104,-500.0,0.00012466,2]
[361273000,1747411841114,-500.0,0.00012466,2]
[361273002,1747411841123,-224.60304986,0.00012466,2]
[361273004,1747411841132,-500.0,0.00012466,2]
[361273006,1747411841142,-500.0,0.00012466,2]
[361273008,1747411841151,-500.0,0.00012466,2]
[361273010,1747411841160,-500.0,0.00012466,2]
[361273012,1747411841169,-500.0,0.00012466,2]
[361273013,1747411841178,-500.0,0.00012466,2]
[361273015,1747411841188,-254.13770971,0.00012466,2]
[361273017,1747411841197,-500.0,0.00012466,2]
[361273019,1747411841207,-500.0,0.00012466,2]
[361273021,1747411841216,-500.0,0.00012466,2]
[361273024,1747411841226,-500.0,0.00012466,2]
[361273026,1747411841235,-500.0,0.00012466,2]
[361273027,1747411841245,-500.0,0.00012466,2]
[361273030,1747411841255,-209.39088799,0.00012466,2]
[361273031,1747411841264,-25621.95844056,0.00012466,2]
[361273034,1747411841276,-653.4130124,0.00012468,2]
[361273036,1747411841286,-186.52663728,0.000129,2]
[361273038,1747411841296,-420.0,0.00013409,2]
[361273039,1747411841306,-420.0,0.0001341,2]
[361273042,1747411841317,-286.0,0.0001341,2]
[361273044,1747411841326,-181.22225361,0.00013428,2]
[361273046,1747411841336,-1200.0,0.0001344,2]
[361273048,1747411841347,-186.52663727,0.00013544,2]
[361273050,1747411841356,-176.56778236,0.00013598,2]
[361273052,1747411841366,-153.0,0.000136,2]
[361273054,1747411841376,-500.0,0.0001364,2]
[361273056,1747411841385,-500.0,0.0001364,2]
[361273058,1747411841395,-500.0,0.0001364,2]
[361273060,1747411841404,-500.0,0.0001364,2]
[361273062,1747411841414,-500.0,0.0001364,2]
[361273063,1747411841423,-500.0,0.0001364,2]
[361273065,1747411841432,-500.0,0.0001364,2]
[361273067,1747411841442,-500.0,0.0001364,2]
[361273070,1747411841452,-162.12406978,0.0001364,2]
[361273072,1747411841462,-500.0,0.0001364,2]
[361273073,1747411841472,-450.0,0.00013698,2]
[361273075,1747411841481,-475.69,0.00013698,2]
[361273077,1747411841491,-400.0,0.00013698,2]
[361273079,1747411841500,-450.0,0.00013698,2]
[361273081,1747411841510,-450.0,0.00013698,2]
[361273083,1747411841520,-450.0,0.00013698,2]
[361273085,1747411841530,-450.0,0.00013698,2]
[361273087,1747411841540,-450.0,0.00013698,2]
[361273089,1747411841551,-450.0,0.00013698,2]
[361273091,1747411841560,-450.0,0.00013698,2]
[361273093,1747411841570,-450.0,0.00013698,2]
[361273095,1747411841579,-450.0,0.00013698,2]
[361273097,1747411841588,-450.0,0.00013698,2]
[361273099,1747411841600,-498.03,0.00013698,2]
[361273101,1747411841610,-450.0,0.00013698,2]
[361273103,1747411841619,-450.0,0.00013698,2]
[361273105,1747411841628,-450.0,0.00013698,2]
[361273107,1747411841638,-450.0,0.00013698,2]
[361273109,1747411841648,-450.0,0.00013698,2]
[361273111,1747411841658,-597.7,0.00013698,2]
[361273113,1747411841667,-450.0,0.00013698,2]
[361273115,1747411841677,-450.0,0.00013698,2]
[361273117,1747411841686,-450.0,0.00013698,2]
[361273119,1747411841696,-450.0,0.00013698,2]
[361273121,1747411841706,-342.06515703,0.00013698,2]
[361273123,1747411841715,-450.0,0.00013698,2]
[361273125,1747411841725,-450.0,0.00013698,2]
[361273127,1747411841734,-4462.18,0.00013698,2]
[361273129,1747411841744,-594.22,0.00013698,2]
[361273131,1747411841754,-450.0,0.00013698,2]
[361273133,1747411841764,-450.0,0.00013698,2]
[361273135,1747411841773,-450.0,0.00013698,2]
[361273137,1747411841786,-197.36038747,0.00013698,2]
[361273139,1747411841795,-450.0,0.00013698,2]
[361273141,1747411841804,-450.0,0.00013698,2]
[361273143,1747411841814,-450.0,0.00013698,2]
[361273145,1747411841824,-450.0,0.00013698,2]
[361273147,1747411841834,-1282.36,0.00013698,2]
[361273149,1747411841844,-450.0,0.00013698,2]
[361273151,1747411841852,-450.0,0.00013698,2]
[361273153,1747411841864,-400.0,0.00013698,2]
[361273154,1747411841873,-450.0,0.00013698,2]
[361273156,1747411841882,-450.0,0.00013698,2]
[361273158,1747411841891,-450.0,0.00013698,2]
[361273160,1747411841901,-450.0,0.00013698,2]
[361273162,1747411841910,-450.0,0.00013698,2]
[361273164,1747411841920,-450.0,0.00013698,2]
[361273166,1747411841929,-450.0,0.00013698,2]
[361273168,1747411841940,-450.0,0.00013698,2]
[361273170,1747411841949,-450.0,0.00013698,2]
[361273172,1747411841959,-450.0,0.00013698,2]
[361273174,1747411841968,-524.18,0.00013698,2]
[361273176,1747411841977,-450.0,0.00013698,2]
[361273178,1747411841986,-450.0,0.00013698,2]
[361273180,1747411841996,-450.0,0.00013698,2]
[361273182,1747411842005,-450.0,0.00013698,2]
[361273184,1747411842015,-450.0,0.00013698,2]
[361273186,1747411842026,-450.0,0.00013698,2]
[361273188,1747411842035,-450.0,0.00013698,2]
[361273190,1747411842044,-249.64089301,0.00013698,2]
[361273192,1747411842054,-450.0,0.00013698,2]
[361273194,1747411842063,-450.0,0.00013698,2]
[361273196,1747411842072,-567.99961634,0.00013698,2]
[361273198,1747411842082,-450.0,0.00013698,2]
[361273200,1747411842091,-450.0,0.00013698,2]
[361273202,1747411842101,-450.0,0.00013698,2]
[361273204,1747411842111,-450.0,0.00013698,2]
[361273206,1747411842122,-450.0,0.00013698,2]
[361273208,1747411842132,-450.0,0.00013698,2]
[361273210,1747411842141,-450.0,0.00013698,2]
[361273211,1747411842150,-450.0,0.00013698,2]
[361273212,1747411842159,-487.44,0.00013698,2]
[361273213,1747411842170,-450.0,0.00013698,2]
[361273214,1747411842179,-450.0,0.00013698,2]
[361273215,1747411842188,-450.0,0.00013698,2]
[361273216,1747411842197,-594.539268,0.00013699,2]
[361273217,1747411842208,-500.0,0.00013834,2]
[361273218,1747411842218,-500.0,0.00013834,2]
[361273219,1747411842227,-249.41844861,0.00013834,2]
[361273220,1747411842236,-500.0,0.00013834,2]
[361273221,1747411842246,-500.0,0.00013834,2]
[361273222,1747411842255,-500.0,0.00013834,2]
[361273223,1747411842263,-500.0,0.00013834,2]
[361273224,1747411842273,-500.0,0.00013834,2]
[361273225,1747411842282,-361.08347467,0.00013834,2]
[361273226,1747411842291,-450.0,0.00013835,2]
[361273227,1747411842301,-450.0,0.00013835,2]
[361273228,1747411842310,-248.55365781,0.00013835,2]
[361273229,1747411842320,-450.0,0.00013835,2]
[361273230,1747411842329,-450.0,0.00013835,2]
[361273231,1747411842339,-291.69,0.00013835,2]
[361273232,1747411842348,-450.0,0.00013835,2]
[361273233,1747411842358,-450.0,0.00013835,2]
[361273234,1747411842367,-577.93,0.00013835,2]
[361273235,1747411842377,-4462.18,0.00013835,2]
[361273236,1747411842386,-450.0,0.00013835,2]
[361273237,1747411842395,-450.0,0.00013835,2]
[361273238,1747411842405,-450.0,0.00013835,2]
[361273239,1747411842414,-450.0,0.00013835,2]
[361273240,1747411842423,-400.0,0.00013835,2]
[361273241,1747411842433,-450.0,0.00013835,2]
[361273242,1747411842443,-1282.36,0.00013835,2]
[361273243,1747411842451,-515.45,0.00013835,2]
[361273244,1747411842461,-450.0,0.00013835,2]
[361273245,1747411842471,-404.29,0.00013835,2]
[361273246,1747411842480,-450.0,0.00013835,2]
[361273247,1747411842489,-400.0,0.00013835,2]
[361273248,1747411842498,-450.0,0.00013835,2]
[361273249,1747411842507,-450.0,0.00013835,2]
[361273250,1747411842517,-551.48,0.00013835,2]
[361273251,1747411842526,-286.53,0.00013835,2]
[361273252,1747411842535,-450.0,0.00013835,2]
[361273253,1747411842545,-450.0,0.00013835,2]
[361273254,1747411842554,-307.62,0.00013835,2]
[361273255,1747411842564,-450.0,0.00013835,2]
[361273256,1747411842573,-450.0,0.00013835,2]
[361273258,1747411842582,-450.0,0.00013835,2]
[361273260,1747411842592,-450.0,0.00013835,2]
[361273262,1747411842603,-442.22,0.00013835,2]
[361273264,1747411842612,-450.0,0.00013835,2]
[361273266,1747411842622,-462.04,0.00013835,2]
[361273268,1747411842631,-450.0,0.00013835,2]
[361273270,1747411842640,-450.0,0.00013835,2]
[361273272,1747411842650,-212.26722696,0.00013841,2]
[361273274,1747411842659,-160.0,0.00013841,2]
[361273276,1747411842669,-422.39640784,0.00013841,2]
[361273278,1747411842678,-12631.88158148,0.00013841,2]
[361273280,1747411842688,-998.24360331,0.00013841,2]
[361273282,1747411842697,-160.0,0.00013841,2]
[361273284,1747411842709,-160.0,0.00013841,2]
[361273286,1747411842718,-160.0,0.00013841,2]
[361273288,1747411842727,-500.0,0.00013878,2]
[361273290,1747411842736,-500.0,0.00013878,2]
[361273292,1747411842746,-503.61154406,0.00013878,2]
[361273294,1747411842755,-500.0,0.00013878,2]
[361273296,1747411842766,-500.0,0.00013878,2]
[361273298,1747411842776,-176.56778234,0.00013899,2]
[361273300,1747411842790,-500.0,0.0001392,2]
[361273302,1747411842799,-500.0,0.0001392,2]
[361273304,1747411842809,-500.0,0.0001392,2]
[361273306,1747411842818,-500.0,0.0001392,2]
[361273308,1747411842829,-160.0,0.00013971,2]
[361273310,1747411842839,-450.0,0.00013972,2]
[361273312,1747411842849,-150.43452353,0.00013972,2]
[361273314,1747411842863,-450.0,0.00013972,2]
[361273316,1747411842873,-450.0,0.00013972,2]
[361273318,1747411842883,-584.15,0.00013972,2]
[361273320,1747411842892,-4462.18,0.00013972,2]
[361273322,1747411842903,-450.0,0.00013972,2]
[361273324,1747411842912,-223.69,0.00013972,2]
[361273326,1747411842922,-450.0,0.00013972,2]
[361273328,1747411842931,-195.73137022,0.00013972,2]
[361273330,1747411842940,-450.0,0.00013972,2]
[361273332,1747411842951,-1282.36,0.00013972,2]
[361273334,1747411842960,-450.0,0.00013972,2]
[361273336,1747411842970,-450.0,0.00013972,2]
[361273338,1747411842979,-243.73,0.00013972,2]
[361273340,1747411842988,-450.0,0.00013972,2]
[361273342,1747411842998,-450.0,0.00013972,2]
[361273344,1747411843007,-191.06,0.00013972,2]
[361273346,1747411843017,-450.0,0.00013972,2]
[361273348,1747411843029,-450.0,0.00013972,2]
[361273350,1747411843039,-450.0,0.00013972,2]
[361273352,1747411843049,-450.0,0.00013972,2]
[361273354,1747411843059,-450.0,0.00013972,2]
[361273356,1747411843068,-32059.31111468,0.00014,2]
[361273358,1747411843078,-1000.0,0.00014,2]
[361273360,1747411843088,-488.6004001,0.00014055,2]
[361273362,1747411843098,-450.0,0.00014109,2]
[361273364,1747411843107,-450.0,0.00014109,2]
[361273366,1747411843118,-407.01187152,0.00014109,2]
[361273368,1747411843127,-4462.18,0.00014109,2]
[361273370,1747411843138,-450.0,0.00014109,2]
[361273372,1747411843148,-450.0,0.00014109,2]
[361273374,1747411843157,-450.0,0.00014109,2]
[361273376,1747411843167,-1282.36,0.00014109,2]
[361273378,1747411843178,-450.0,0.00014109,2]
[361273379,1747411843188,-170.18,0.00014109,2]
[361273381,1747411843198,-450.0,0.00014109,2]
[361273383,1747411843207,-545.23,0.00014109,2]
[361273385,1747411843217,-450.0,0.00014109,2]
[361273387,1747411843226,-450.0,0.00014109,2]
[361273389,1747411843236,-450.0,0.00014109,2]
[361273392,1747411843245,-380.34,0.00014109,2]
[361273395,1747411843254,-450.0,0.00014109,2]
[361273398,1747411843264,-207.4,0.0001413,2]
[361273400,1747411843279,-151.0,0.0001413,2]
[361273402,1747411843289,-1000.0,0.00014188,2]
[361273404,1747411843299,-1000.0,0.00014188,2]
[361273407,1747411843308,-1000.0,0.00014188,2]
[361273409,1747411843318,-1000.0,0.00014188,2]
[361273411,1747411843327,-1000.0,0.00014188,2]
[361273413,1747411843337,-1003.98984785,0.00014188,2]
[361273414,1747411843346,-1000.0,0.00014188,2]
[361273416,1747411843355,-1000.0,0.00014188,2]
[361273418,1747411843365,-707.0,0.00014193,2]
[361273420,1747411843376,-2236.0,0.00014193,2]
[361273422,1747411843385,-404.0,0.00014193,2]
[361273424,1747411843396,-176.56778234,0.00014199,2]
[361273426,1747411843405,-296.60997948,0.00014212,2]
[361273428,1747411843415,-500.0,0.00014225,2]
[361273430,1747411843424,-500.0,0.00014225,2]
[361273432,1747411843434,-500.0,0.00014226,2]
[361273434,1747411843444,-500.0,0.00014226,2]
[361273436,1747411843455,-500.0,0.00014226,2]
[361273438,1747411843465,-518.33023863,0.00014226,2]
[361273440,1747411843474,-500.0,0.00014226,2]
[361273442,1747411843484,-450.0,0.00014246,2]
[361273444,1747411843493,-450.0,0.00014246,2]
[361273446,1747411843503,-4462.18,0.00014246,2]
[361273448,1747411843512,-450.0,0.00014246,2]
[361273450,1747411843526,-450.0,0.00014246,2]
[361273452,1747411843535,-450.0,0.00014246,2]
[361273472,1747411843706,-1282.36,0.00014246,2]
[361273474,1747411843722,-450.0,0.00014246,2]
[361273476,1747411843731,-450.0,0.00014246,2]
[361273478,1747411843741,-450.0,0.00014246,2]
[361273480,1747411843750,-450.0,0.00014246,2]
[361273482,1747411843759,-278.48,0.00014246,2]
[361273484,1747411843768,-395.27862245,0.00014246,2]
[361273486,1747411843783,-500.0,0.00014319,2]
[361273488,1747411843793,-500.0,0.00014319,2]
[361273490,1747411843802,-155.355,0.00014362,2]
[361273492,1747411843812,-421.91314652,0.00014383,2]
[361273494,1747411843821,-389.755,0.00014383,2]
[361273496,1747411843831,-197.82418056,0.00014383,2]
[361273498,1747411843840,-4462.18,0.00014383,2]
[361273500,1747411843850,-450.0,0.00014383,2]
[361273502,1747411843861,-450.0,0.00014383,2]
[361273504,1747411843871,-450.0,0.00014383,2]
[361273506,1747411843881,-1282.36,0.00014383,2]
[361273508,1747411843890,-552.18,0.00014383,2]
[361273510,1747411843900,-449.14,0.00014383,2]
[361273512,1747411843909,-450.0,0.00014383,2]
[361273514,1747411843918,-450.0,0.00014383,2]
[361273516,1747411843928,-151.0,0.000144,2]
[361273518,1747411843938,-151.0,0.000144,2]
[361273519,1747411843947,-1000.0,0.00014426,2]
[361273521,1747411843957,-1006.9201284,0.00014426,2]
[361273524,1747411843967,-1000.0,0.00014426,2]
[361273525,1747411843976,-1000.0,0.00014426,2]
[361273527,1747411843986,-202.0258361,0.00014466,2]
[361273529,1747411843995,-153.0,0.00014466,2]
[361273531,1747411844005,-153.0,0.00014466,2]
[361273533,1747411844015,-153.0,0.00014466,2]
[361273535,1747411844026,-153.0,0.00014466,2]
[361273537,1747411844035,-153.0,0.00014466,2]
[361273539,1747411844044,-153.0,0.00014466,2]
[361273541,1747411844053,-1000.0,0.00014468,2]
[361273543,1747411844063,-327.31172944,0.00014468,2]
[361273545,1747411844072,-1000.0,0.00014468,2]
[361273547,1747411844082,-1000.0,0.00014468,2]
[361273549,1747411844092,-176.56778234,0.000145,2]
[361273551,1747411844101,-151.0,0.000145,2]
[361273553,1747411844111,-4462.18,0.0001452,2]
[361273555,1747411844120,-363.16767431,0.0001452,2]
[361273557,1747411844130,-450.0,0.0001452,2]
[361273559,1747411844140,-450.0,0.0001452,2]
[361273561,1747411844149,-1282.36,0.0001452,2]
[361273563,1747411844159,-450.0,0.0001452,2]
[361273565,1747411844169,-450.0,0.0001452,2]
[361273567,1747411844179,-151.0,0.000146,2]
[361273569,1747411844188,-151.0,0.000146,2]
[361273571,1747411844198,-4462.18,0.00014657,2]
[361273573,1747411844208,-450.0,0.00014657,2]
[361273575,1747411844217,-450.0,0.00014657,2]
[361273577,1747411844227,-1282.36,0.00014657,2]
[361273579,1747411844237,-450.0,0.00014657,2]
[361273581,1747411844246,-595.74,0.00014657,2]
[361273583,1747411844256,-151.0,0.000147,2]
[361273585,1747411844266,-151.0,0.000147,2]
[361273587,1747411844279,-46554.0,0.000147,2]
[361273589,1747411844291,-305.0,0.00014716,2]
[361273591,1747411844302,-587.0,0.00014718,2]
[361273593,1747411844312,-1500.0,0.00014736,2]
[361273595,1747411844322,-1500.0,0.00014736,2]
[361273597,1747411844332,-1500.0,0.00014736,2]
[361273599,1747411844343,-1500.0,0.00014736,2]
[361273601,1747411844352,-1500.0,0.00014736,2]
[361273603,1747411844363,-1500.0,0.00014736,2]
[361273605,1747411844373,-1500.0,0.00014736,2]
[361273607,1747411844383,-1000.0,0.00014773,2]
[361273609,1747411844392,-1000.0,0.00014773,2]
[361273611,1747411844402,-1000.0,0.00014774,2]
[361273613,1747411844412,-1000.0,0.00014774,2]
[361273615,1747411844422,-1000.0,0.00014774,2]
[361273617,1747411844432,-1000.0,0.00014774,2]
[361273619,1747411844441,-4462.18,0.00014794,2]
[361273620,1747411844451,-542.83993505,0.00014794,2]
[361273623,1747411844460,-366.12,0.00014794,2]
[361273624,1747411844470,-1282.36,0.00014794,2]
[361273626,1747411844479,-450.0,0.00014794,2]
[361273628,1747411844490,-2000.0,0.000148,2]
[361273630,1747411844499,-151.0,0.000148,2]
[361273632,1747411844508,-50000.0,0.000148,2]
[361273634,1747411844518,-176.56778234,0.000148,2]
[361273636,1747411844534,-1257.26184315,0.00014848,2]
[361273638,1747411844544,-20749.17075032,0.0001485,2]
[361273641,1747411844560,-772.79413623,0.0001485,2]
[361273643,1747411844571,-493.28256153,0.0001485,2]
[361274236,1747411860125,312.0,0.000273,120]
[361274237,1747411892398,200.0,0.00026085,120]
[361274239,1747411951627,200.0,0.00027369,120]
[361274240,1747412012214,200.0,0.0002731,120]
[361274241,1747412071299,200.0,0.00026753,120]
[361274407,1747413040092,-5000.0,0.00012631,14]
[361274409,1747413040102,-300.0,0.00012758,2]
[361274411,1747413040112,-300.0,0.00012759,2]
[361274413,1747413040120,-1200.0,0.00012759,2]
[361274415,1747413040130,-24755.8597628,0.0001276,2]
[361274417,1747413040139,-176.971446,0.00012796,2]
[361274419,1747413040149,-174.68499993,0.000129,2]
[361274421,1747413040161,-500.0,0.00013693,2]
[361274423,1747413040170,-500.0,0.00013693,2]
[361274425,1747413040179,-500.0,0.00013693,2]
[361274427,1747413040189,-427.35097868,0.00013693,2]
[361274429,1747413040199,-500.0,0.00013693,2]
[361274431,1747413040208,-500.0,0.00013693,2]
[361274433,1747413040217,-500.0,0.00013693,2]
[361274434,1747413040228,-614.07489472,0.00013693,2]
[361274436,1747413040237,-455.47143475,0.00013693,2]
[361274437,1747413040246,-500.0,0.00013693,2]
[361274438,1747413040255,-500.0,0.00013693,2]
[361274439,1747413040265,-500.0,0.00013693,2]
[361274441,1747413040274,-500.0,0.00013693,2]
[361274442,1747413040283,-500.0,0.00013693,2]
[361274443,1747413040292,-500.0,0.00013693,2]
[361274445,1747413040302,-500.0,0.00013693,2]
[361274447,1747413040311,-500.0,0.00013693,2]
[361274449,1747413040320,-500.0,0.00013693,2]
[361274451,1747413040329,-500.0,0.00013693,2]
[361274453,1747413040339,-500.0,0.00013693,2]
[361274455,1747413040347,-500.0,0.00013693,2]
[361274457,1747413040357,-500.0,0.00013693,2]
[361274459,1747413040366,-500.0,0.00013693,2]
[361274460,1747413040375,-500.0,0.00013693,2]
[361274462,1747413040385,-288.10157138,0.00013693,2]
[361274464,1747413040394,-500.0,0.00013693,2]
[361274466,1747413040403,-500.0,0.00013693,2]
[361274468,1747413040413,-450.0,0.00013698,2]
[361274470,1747413040422,-801.48,0.00013698,2]
[361274472,1747413040432,-2788.86,0.00013698,2]
[361274474,1747413040440,-450.0,0.00013698,2]
[361274476,1747413040450,-450.0,0.00013698,2]
[361274478,1747413040460,-644.187041,0.00013699,2]
[361274480,1747413040469,-500.0,0.00013699,2]
[361274482,1747413040479,-500.0,0.00013699,2]
[361274484,1747413040488,-500.0,0.00013699,2]
[361274486,1747413040497,-500.0,0.00013699,2]
[361274488,1747413040507,-500.0,0.00013699,2]
[361274490,1747413040517,-500.0,0.00013699,2]
[361274493,1747413040527,-500.0,0.00013699,2]
[361274495,1747413040537,-500.0,0.00013699,2]
[361274497,1747413040546,-164.21163212,0.00013699,2]
[361274499,1747413040555,-500.0,0.00013699,2]
[361274501,1747413040564,-500.0,0.00013699,2]
[361274503,1747413040574,-500.0,0.00013699,2]
[361274505,1747413040583,-500.0,0.00013699,2]
[361274507,1747413040592,-500.0,0.00013699,2]
[361274509,1747413040601,-500.0,0.00013699,2]
[361274511,1747413040610,-500.0,0.00013699,2]
[361274512,1747413040620,-500.0,0.00013699,2]
[361274514,1747413040629,-500.0,0.00013699,2]
[361274516,1747413040638,-500.0,0.00013699,2]
[361274518,1747413040648,-500.0,0.00013699,2]
[361274520,1747413040657,-500.0,0.00013699,2]
[361274523,1747413040666,-500.0,0.00013699,2]
[361274525,1747413040676,-174.68499991,0.00013798,2]
[361274527,1747413040685,-500.0,0.00013825,2]
[361274529,1747413040695,-500.0,0.00013825,2]
[361274531,1747413040704,-500.0,0.00013825,2]
[361274533,1747413040713,-500.0,0.00013825,2]
[361274535,1747413040723,-500.0,0.00013825,2]
[361274537,1747413040732,-801.48,0.00013835,2]
[361274539,1747413040741,-2788.86,0.00013835,2]
[361274541,1747413040751,-450.0,0.00013835,2]
[361274543,1747413040760,-212.26722696,0.00013851,2]
[361274544,1747413040769,-160.0,0.00013851,2]
[361274545,1747413040779,-12631.88158148,0.00013851,2]
[361274546,1747413040788,-422.39640784,0.00013851,2]
[361274548,1747413040798,-998.24360331,0.00013851,2]
[361274550,1747413040807,-160.0,0.00013851,2]
[361274551,1747413040816,-160.0,0.00013851,2]
[361274552,1747413040826,-212.33441321,0.00013874,2]
[361274553,1747413040837,-801.48,0.00013972,2]
[361274554,1747413040846,-2788.86,0.00013972,2]
[361274555,1747413040856,-450.0,0.00013972,2]
[361274556,1747413040865,-420.0,0.00013996,2]
[361274557,1747413040874,-153.0,0.00014,2]
[361274558,1747413040884,-2788.86,0.00014109,2]
[361274559,1747413040894,-801.48,0.00014109,2]
[361274560,1747413040903,-450.0,0.00014109,2]
[361274561,1747413040912,-158.0124312,0.00014192,2]
[361274562,1747413040922,-175.8374533,0.00014192,2]
[361274563,1747413040931,-569.459184,0.00014192,2]
[361274564,1747413040940,-175.8374533,0.00014192,2]
[361274565,1747413040950,-569.459184,0.00014192,2]
[361274566,1747413040959,-158.0124312,0.00014192,2]
[361274567,1747413040968,-175.8374533,0.00014192,2]
[361274568,1747413040978,-569.459184,0.00014192,2]
[361274569,1747413040987,-158.0124312,0.00014192,2]
[361274570,1747413040996,-569.459184,0.00014192,2]
[361274571,1747413041006,-175.7296127,0.000142,2]
[361274572,1747413041015,-153.0,0.000142,2]
[361274573,1747413041024,-221.0285751,0.000142,2]
[361274574,1747413041033,-1153.7715431,0.000142,2]
[361274575,1747413041042,-362.9868952,0.000142,2]
[361274576,1747413041051,-308.4835268,0.000142,2]
[361274577,1747413041060,-569.459184,0.000142,2]
[361274578,1747413041069,-330.6276388,0.000142,2]
[361274579,1747413041078,-2788.86,0.00014246,2]
[361274580,1747413041087,-801.48,0.00014246,2]
[361274581,1747413041097,-450.0,0.00014246,2]
[361274582,1747413041106,-1000.0,0.00014373,2]
[361274583,1747413041115,-1000.0,0.00014373,2]
[361274584,1747413041125,-1000.0,0.00014373,2]
[361274585,1747413041134,-529.34092145,0.00014373,2]
[361274586,1747413041143,-1000.0,0.00014373,2]
[361274587,1747413041155,-2788.86,0.00014383,2]
[361274588,1747413041164,-801.48,0.00014383,2]
[361274589,1747413041174,-450.0,0.00014383,2]